[Event "Skalica SCHAEFFLER Open 2019"]
[Site "Skalica"]
[Date "2019.08.29"]
[Round "7.7"]
[White "Benci, Rudolf"]
[Black "Matusina, Miroslav"]
[Result "0-1"]
[ECO "A45"]
[WhiteElo "1635"]
[BlackElo "1644"]
[Annotator "NA"]
[PlyCount "165"]
[EventDate "2019.08.25"]
[EventType "swiss"]
[EventCountry "SVK"]
[SourceTitle "playchess.com"]
[Source "ChessBase"]
[SourceQuality "1"]
[TimeControl "40/5400+30:1800+30"]

1. d4 {[%emt 0:02:54]} e6 {[%emt 0:13:04]} 2. Bf4 {[%emt 0:00:09]} Nf6 {[%emt 0:00:52]} 3. e3 {[%emt 0:00:08]} d6 {[%emt 0:01:14]} 4. c3 {[%emt 0:01:48]} Nbd7 {[%emt 0:02:14]} 5. Nf3 {[%emt 0:00:24]} Nd5 {[%emt 0:00:42]} 6. Bg3 {[%emt 0:02:00]} N7f6 {[%emt 0:00:43]} 7. Nbd2 {[%emt 0:00:29]} Be7 {[%emt 0:02:15]} 8. e4 {[%emt 0:00:59]} Nb6 {[%emt 0:00:59]} 9. Bd3 {[%emt 0:02:38]} h6 {[%emt 0:04:20]} 10. e5 {[%emt 0:00:41]} dxe5 {[%emt 0:04:32]} 11. Nxe5 {[%emt 0:00:20]} O-O {[%emt 0:00:24]} 12. O-O {[%emt 0:00:59]} Nbd7 {[%emt 0:03:26]} 13. f4 {[%emt 0:36:13]} c5 {[%emt 0:45:08]} 14. Ndf3 {[%emt 0:00:30]} Nh5 {[%emt 0:00:30]} 15. Qe1 {[%emt 0:00:30]} Nxg3 {[%emt 0:00:30]} 16. hxg3 {[%emt 0:00:30]} cxd4 {[%emt 0:00:30]} 17. Nxd4 {[%emt 0:00:30]} Nf6 {[%emt 0:00:30]} 18. Kh1 {[%emt 0:00:30]} a6 {[%emt 0:00:30]} 19. Rd1 {[%emt 0:00:30]} Qa5 {[%emt 0:00:30]} 20. a3 {[%emt 0:00:30]} Bd7 {[%emt 0:00:30]} 21. Nc2 {[%emt 0:00:30]} Rae8 {[%emt 0:00:30]} 22. b4 {[%emt 0:00:30]} Qc7 {[%emt 0:00:30]} 23. c4 {[%emt 0:00:30]} Ba4 {[%emt 0:00:30]} 24. Rd2 {[%emt 0:00:30]} Bd6 {[%emt 0:00:30]} 25. Nd4 {[%emt 0:00:30]} Rd8 {[%emt 0:00:30]} 26. Ndf3 {[%emt 0:00:30]} Bc6 {[%emt 0:00:30]} 27. g4 {[%emt 0:00:30]} Bxf3 {[%emt 0:00:02]} 28. gxf3 {[%emt 0:00:53]} a5 {[%emt 0:00:33]} 29. c5 {[%emt 0:00:34]} Bxe5 {[%emt 0:02:31]} 30. fxe5 {[%emt 0:00:32]} Nh7 {[%emt 0:01:27]} 31. Qe4 {[%emt 0:01:02]} g6 {[%emt 0:00:10]} 32. Rh2 {[%emt 0:00:21]} Ng5 {[%emt 0:02:44]} 33. Qe3 {[%emt 0:02:53]} Kg7 {[%emt 0:01:02]} 34. f4 {[%emt 0:11:57]} Rxd3 {[%emt 0:00:21]} 35. Qxd3 {[%emt 0:00:12]} Qc6+ {[%emt 0:00:06]} 36. Kg1 {[%emt 0:00:02]} Qe4 {[%emt 0:02:33]} 37. Qxe4 {[%emt 0:01:44]} Nxe4 {[%emt 0:00:02]} 38. Rd1 {[%emt 0:15:01]} axb4 {[%emt 0:00:48]} 39. axb4 {[%emt 0:00:01]} Ra8 {[%emt 0:00:13]} 40. Rb2 {[%emt 0:01:49]} Nc3 {[%emt 0:02:21]} 41. Rc1 {[%emt 0:30:31]} Nd5 {[%emt 0:30:02]} 42. f5 {[%emt 0:08:11]} Ne3 {[%emt 0:02:02]} 43. f6+ {[%emt 0:02:56]} Kh7 {[%emt 0:00:03]} 44. c6 {[%emt 0:01:51]} bxc6 {[%emt 0:00:21]} 45. Rxc6 {[%emt 0:00:01]} Nxg4 {[%emt 0:00:02]} 46. Rc5 {[%emt 0:00:50]} g5 {[%emt 0:00:27]} 47. Kg2 {[%emt 0:01:03]} h5 {[%emt 0:00:42]} 48. Ra5 {[%emt 0:00:24]} Rd8 {[%emt 0:00:13]} 49. Re2 {[%emt 0:02:49]} Rd3 {[%emt 0:01:22]} 50. Rc5 {[%emt 0:00:00]} Rb3 {[%emt 0:00:00]} 51. b5 {[%emt 0:00:00]} h4 {[%emt 0:00:00]} 52. Rc7 {[%emt 0:00:00]} Kg6 {[%emt 0:00:00]} 53. Rc1 {[%emt 0:00:00]} Rxb5 {[%emt 0:00:00]} 54. Rce1 {[%emt 0:00:00]} Rb3 {[%emt 0:00:00]} 55. Rh1 {[%emt 0:00:00]} Ne3+ {[%emt 0:00:00]} 56. Kf2 {[%emt 0:00:00]} Nf5 {[%emt 0:00:00]} 57. Rd1 {[%emt 0:00:00]} g4 {[%emt 0:00:00]} 58. Rd8 {[%emt 0:00:00]} Nh6 {[%emt 0:00:00]} 59. Kg2 {[%emt 0:00:00]} h3+ {[%emt 0:00:00]} 60. Kh2 {[%emt 0:00:00]} Rf3 {[%emt 0:00:00]} 61. Ra8 {[%emt 0:00:00]} Rf5 {[%emt 0:00:00]} 62. Kg3 {[%emt 0:00:00]} Rf3+ {[%emt 0:00:00]} 63. Kh2 {[%emt 0:00:00]} Kg5 {[%emt 0:00:00]} 64. Rh8 {[%emt 0:00:00]} Nf5 {[%emt 0:00:00]} 65. Rg8+ {[%emt 0:00:00]} Kf4 {[%emt 0:00:00]} 66. Rg7 {[%emt 0:00:29]} Nh6 {[%emt 0:00:00]} 67. Rh7 {[%emt 0:01:13]} Kg5 {[%emt 0:00:00]} 68. Rg7+ {[%emt 0:00:50]} Kh4 {[%emt 0:00:00]} 69. Rh7 {[%emt 0:03:06]} g3+ {[%emt 0:00:00]} 70. Kg1 {[%emt 0:00:19]} Kg5 {[%emt 0:00:00]} 71. Rg7+ {[%emt 0:00:58]} Kf4 {[%emt 0:00:00]} 72. Rh7 {[%emt 0:01:12]} Rb3 {[%emt 0:00:00]} 73. Re1 {[%emt 0:00:32]} Kg5 {[%emt 0:00:00]} 74. Rg7+ {[%emt 0:00:10]} Kh5 {[%emt 0:00:00]} 75. Rh7 {[%emt 0:00:11]} Rf3 {[%emt 0:00:07]} 76. Kh1 {[%emt 0:04:48]} Ra3 {[%emt 0:00:04]} 77. Kg1 {[%emt 0:01:10]} Ra2 {[%emt 0:00:02]} 78. Kh1 {[%emt 0:00:05]} Kg5 {[%emt 0:01:20]} 79. Rg7+ {[%emt 0:00:05]} Kf4 {[%emt 0:00:36]} 80. Rh7 {[%emt 0:00:44]} Ng4 {[%emt 0:03:11]} 81. Rxf7 {[%emt 0:01:45]} Nxe5 {[%emt 0:00:21]} 82. Rh7 {[%emt 0:00:26]} g2+ {[%emt 0:02:52]} 83. Kh2 {[%emt 0:01:08]} 0-1

[Event "Skalica SCHAEFFLER Open 2019"]
[Site "Skalica"]
[Date "2019.08.29"]
[Round "7.8"]
[White "Kozusnik, Roman"]
[Black "Kanak, Matyas"]
[Result "1/2-1/2"]
[ECO "E32"]
[WhiteElo "1231"]
[BlackElo "1540"]
[Annotator "NA"]
[PlyCount "22"]
[EventDate "2019.08.25"]
[EventType "swiss"]
[EventCountry "SVK"]
[SourceTitle "playchess.com"]
[Source "ChessBase"]
[SourceQuality "1"]
[TimeControl "40/5400+30:1800+30"]

1. d4 {[%emt 0:00:00]} Nf6 {[%emt 0:00:00]} 2. c4 {[%emt 0:00:00]} e6 {[%emt 0:00:00]} 3. Nc3 {[%emt 0:00:30]} Bb4 {[%emt 0:00:00]} 4. Qd3 {[%emt 0:05:26]} O-O {[%emt 0:02:48]} 5. Bg5 {[%emt 0:00:57]} d6 {[%emt 0:00:03]} 6. a3 {[%emt 0:02:09]} Bxc3+ {[%emt 0:00:18]} 7. Qxc3 {[%emt 0:02:08]} Nbd7 {[%emt 0:00:15]} 8. e4 {[%emt 0:03:53]} h6 {[%emt 0:01:57]} 9. Bxf6 {[%emt 0:00:04]} Qxf6 {[%emt 0:00:08]} 10. Bd3 {[%emt 0:06:11]} c5 {[%emt 0:01:15]} 11. Ne2 {[%emt 0:02:00]} Kh8 {[%emt 0:48:38]} 1/2-1/2

[Event "Skalica SCHAEFFLER Open 2019"]
[Site "Skalica"]
[Date "2019.08.29"]
[Round "7.9"]
[White "Delgerdalai, Bayarjavkhlan"]
[Black "Drabek, Martin"]
[Result "1/2-1/2"]
[ECO "D11"]
[WhiteElo "1460"]
[BlackElo "1381"]
[Annotator "NA"]
[PlyCount "66"]
[EventDate "2019.08.25"]
[EventType "swiss"]
[EventCountry "SVK"]
[SourceTitle "playchess.com"]
[Source "ChessBase"]
[SourceQuality "1"]
[TimeControl "40/5400+30:1800+30"]

1. d4 {[%emt 0:00:00]} d5 {[%emt 0:01:57]} 2. Nf3 {[%emt 0:00:00]} Bg4 {[%emt 0:01:41]} 3. e3 {[%emt 0:00:20]} e6 {[%emt 0:00:36]} 4. c4 {[%emt 0:01:36]} Nf6 {[%emt 0:01:13]} 5. b3 {[%emt 0:00:48]} Nbd7 {[%emt 0:00:59]} 6. Nbd2 {[%emt 0:01:47]} c6 {[%emt 0:01:38]} 7. Bd3 {[%emt 0:00:47]} Bd6 {[%emt 0:01:27]} 8. O-O {[%emt 0:01:03]} O-O {[%emt 0:01:15]} 9. Bb2 {[%emt 0:00:47]} Bb4 {[%emt 0:04:18]} 10. Qc2 {[%emt 0:01:41]} h6 {[%emt 0:01:44]} 11. Ne5 {[%emt 0:02:21]} Nxe5 {[%emt 0:02:03]} 12. dxe5 {[%emt 0:01:22]} Nd7 {[%emt 0:01:12]} 13. f4 {[%emt 0:03:56]} Rc8 {[%emt 0:01:24]} 14. Nf3 {[%emt 0:04:17]} Nc5 {[%emt 0:37:22]} 15. Bh7+ {[%emt 0:44:56]} Kh8 {[%emt 0:05:22]} 16. a3 {[%emt 0:00:30]} Ne4 {[%emt 0:00:30]} 17. Bxe4 {[%emt 0:00:30]} dxe4 {[%emt 0:00:30]} 18. Qxe4 {[%emt 0:00:30]} Bc5 {[%emt 0:00:30]} 19. Nd4 {[%emt 0:00:30]} a6 {[%emt 0:00:30]} 20. Rf2 {[%emt 0:00:30]} Qe7 {[%emt 0:00:30]} 21. Rd2 {[%emt 0:00:30]} Rcd8 {[%emt 0:00:30]} 22. b4 {[%emt 0:00:30]} Bxd4 {[%emt 0:00:30]} 23. exd4 {[%emt 0:00:30]} Bf5 {[%emt 0:00:30]} 24. Qe3 {[%emt 0:00:30]} Rd7 {[%emt 0:00:30]} 25. Qc3 {[%emt 0:00:30]} Rfd8 {[%emt 0:00:30]} 26. a4 {[%emt 0:00:30]} Qh4 {[%emt 0:00:30]} 27. Rf1 {[%emt 0:04:09]} Qg4 {[%emt 0:02:33]} 28. Qg3 {[%emt 0:10:50]} Qxg3 {[%emt 0:08:59]} 29. hxg3 {[%emt 0:00:30]} b6 {[%emt 0:00:30]} 30. Rdf2 {[%emt 0:00:30]} b5 {[%emt 0:00:30]} 31. c5 {[%emt 0:00:30]} Rb8 {[%emt 0:00:30]} 32. a5 {[%emt 0:09:01]} Rbd8 {[%emt 0:01:25]} 33. Re1 {[%emt 0:02:48]} Kg8 {[%emt 0:01:35]} 1/2-1/2

[Event "Skalica SCHAEFFLER Open 2019"]
[Site "Skalica"]
[Date "2019.08.29"]
[Round "7.10"]
[White "Sefcik, Oliver"]
[Black "Gres, Michal"]
[Result "0-1"]
[ECO "C42"]
[WhiteElo "1198"]
[BlackElo "1410"]
[Annotator "NA"]
[PlyCount "60"]
[EventDate "2019.08.25"]
[EventType "swiss"]
[EventCountry "SVK"]
[SourceTitle "playchess.com"]
[Source "ChessBase"]
[SourceQuality "1"]
[TimeControl "40/5400+30:1800+30"]

1. e4 {[%emt 0:00:00]} e5 {[%emt 0:00:00]} 2. Nf3 {[%emt 0:00:00]} Nf6 {[%emt 0:00:00]} 3. Nc3 {[%emt 0:00:36]} Bb4 {[%emt 0:00:13]} 4. d3 {[%emt 0:01:22]} Bxc3+ {[%emt 0:05:47]} 5. bxc3 {[%emt 0:00:25]} Nc6 {[%emt 0:00:25]} 6. Be2 {[%emt 0:01:53]} O-O {[%emt 0:00:32]} 7. O-O {[%emt 0:00:09]} d6 {[%emt 0:01:11]} 8. Bg5 {[%emt 0:01:26]} Be6 {[%emt 0:02:03]} 9. h3 {[%emt 0:02:46]} Kh8 {[%emt 0:06:59]} 10. Nh2 {[%emt 0:03:40]} Qd7 {[%emt 0:04:14]} 11. Bxf6 {[%emt 0:03:03]} gxf6 {[%emt 0:00:12]} 12. Bg4 {[%emt 0:00:45]} Rg8 {[%emt 0:02:08]} 13. Bxe6 {[%emt 0:01:28]} Qxe6 {[%emt 0:00:24]} 14. Qf3 {[%emt 0:01:17]} Rg6 {[%emt 0:02:41]} 15. Kh1 {[%emt 0:01:13]} Rag8 {[%emt 1:10:41]} 16. Rg1 {[%emt 1:17:57]} Ne7 {[%emt 0:00:30]} 17. g4 {[%emt 0:00:30]} d5 {[%emt 0:00:30]} 18. exd5 {[%emt 0:00:30]} Nxd5 {[%emt 0:00:30]} 19. c4 {[%emt 0:00:30]} Nf4 {[%emt 0:00:30]} 20. Rae1 {[%emt 0:00:30]} f5 {[%emt 0:00:30]} 21. Qe3 {[%emt 0:00:30]} Qc6+ {[%emt 0:00:30]} 22. Qf3 {[%emt 0:00:30]} Qxf3+ {[%emt 0:00:30]} 23. Nxf3 {[%emt 0:00:30]} Nxh3 {[%emt 0:00:30]} 24. Rg2 {[%emt 0:00:30]} Nf4 {[%emt 0:00:30]} 25. Rh2 {[%emt 0:00:30]} Rxg4 {[%emt 0:00:30]} 26. Nxe5 {[%emt 0:00:30]} R4g7 {[%emt 0:00:30]} 27. Rh4 {[%emt 0:00:30]} Ng2 {[%emt 0:00:30]} 28. Nf3 {[%emt 0:00:30]} Nxe1 {[%emt 0:00:30]} 29. Nxe1 {[%emt 0:00:30]} Rg1+ {[%emt 0:00:30]} 30. Kh2 {[%emt 0:00:30]} Rxe1 {[%emt 0:00:30]} 0-1

[Event "Skalica SCHAEFFLER Open 2019"]
[Site "Skalica"]
[Date "2019.08.30"]
[Round "8.1"]
[White "Vlcek, Antonin"]
[Black "Podskubka, Ondrej"]
[Result "*"]
[ECO "B34"]
[WhiteElo "1686"]
[BlackElo "1684"]
[Annotator "NA"]
[PlyCount "20"]
[EventDate "2019.08.25"]
[EventType "swiss"]
[EventCountry "SVK"]
[SourceTitle "playchess.com"]
[Source "ChessBase"]
[SourceQuality "1"]
[TimeControl "40/5400+30:1800+30"]

1. e4 {[%emt 0:00:00]} c5 {[%emt 0:00:00]} 2. Nf3 {[%emt 0:00:00]} Nc6 {[%emt 0:00:00]} 3. d4 {[%emt 0:00:00]} cxd4 {[%emt 0:00:06]} 4. Nxd4 {[%emt 0:00:04]} g6 {[%emt 0:00:07]} 5. Nc3 {[%emt 0:00:35]} Bg7 {[%emt 0:00:35]} 6. Be3 {[%emt 0:00:53]} Nf6 {[%emt 0:00:00]} 7. Qd2 {[%emt 0:02:47]} Nxd4 {[%emt 0:10:38]} 8. Bxd4 {[%emt 0:00:35]} d6 {[%emt 0:01:45]} 9. Bb5+ {[%emt 0:01:00]} Bd7 {[%emt 0:00:38]} 10. O-O {[%emt 0:09:55]} O-O {[%emt 0:01:41]} *

[Event "Skalica SCHAEFFLER Open 2019"]
[Site "Skalica"]
[Date "2019.08.30"]
[Round "8.1"]
[White "Vlcek, Antonin"]
[Black "Podskubka, Ondrej"]
[Result "0-1"]
[ECO "B34"]
[WhiteElo "1686"]
[BlackElo "1712"]
[Annotator "NA RC"]
[PlyCount "48"]
[EventDate "2019.08.25"]
[EventType "swiss"]
[EventCountry "SVK"]
[TimeControl "40/5400+30:1800+30"]

1. e4 c5 2. Nf3 Nc6 3. d4 cxd4 4. Nxd4 g6 5. Nc3 Bg7 6. Be3 Nf6 7. Qd2 Nxd4 8. Bxd4 d6 9. Bb5+ Bd7 10. Bxd7+ Qxd7 11. O-O O-O 12. Rad1 Qc6 13. Rfe1 Rfe8 14. a4 b6 15. e5 dxe5 16. Bxe5 Rac8 17. Re2 Qc4 18. b3 Qh4 19. f3 Bh6 20. f4 Ng4 21. g3 Qh5 22. Nd5 Bf8 23. Bb2 Rcd8 24. Rxe7 Rxd5 0-1

[Event "Skalica SCHAEFFLER Open 2019"]
[Site "Skalica"]
[Date "2019.08.30"]
[Round "8.3"]
[White "Hrdlicka, Martin"]
[Black "Londin, Martin"]
[Result "1-0"]
[ECO "B00"]
[WhiteElo "1661"]
[BlackElo "1466"]
[Annotator "NA RC"]
[PlyCount "47"]
[EventDate "2019.08.25"]
[EventType "swiss"]
[EventCountry "SVK"]
[TimeControl "40/5400+30:1800+30"]

1. e4 b6 2. d4 Bb7 3. Bd3 e6 4. c3 d5 5. e5 c5 6. Nf3 Nc6 7. a3 f6 8. Qe2 c4 9. Bc2 Qc8 10. O-O fxe5 11. Nxe5 Nf6 12. Bg5 Nxe5 13. Bxf6 Ng6 14. Bg5 Bd6 15. Bf5 Qc7 16. Bxe6 Ne7 17. Re1 h6 18. Bh4 Bxh2+ 19. Kf1 Bd6 20. Qg4 g5 21. Qh5+ Kd8 22. Bxg5 Bc6 23. Bf6 Rh7 24. Qg6 1-0

[Event "Skalica SCHAEFFLER Open 2019"]
[Site "Skalica"]
[Date "2019.08.30"]
[Round "8.4"]
[White "Vozarova, Adriana"]
[Black "Novomeska, Karin"]
[Result "1-0"]
[ECO "B19"]
[WhiteElo "1647"]
[BlackElo "1269"]
[Annotator "NA"]
[PlyCount "24"]
[EventDate "2019.08.25"]
[EventType "swiss"]
[EventCountry "SVK"]
[SourceTitle "playchess.com"]
[Source "ChessBase"]
[SourceQuality "1"]
[TimeControl "40/5400+30:1800+30"]

1. e4 {[%emt 0:00:00]} c6 {[%emt 0:00:00]} 2. d4 {[%emt 0:00:00]} d5 {[%emt 0:00:00]} 3. Nc3 {[%emt 0:00:00]} dxe4 {[%emt 0:00:00]} 4. Nxe4 {[%emt 0:00:05]} Bf5 {[%emt 0:00:00]} 5. Ng3 {[%emt 0:00:10]} Bg6 {[%emt 0:00:00]} 6. Nf3 {[%emt 0:00:20]} Nf6 {[%emt 0:00:02]} 7. h4 {[%emt 0:01:41]} h6 {[%emt 0:00:11]} 8. Be3 {[%emt 0:00:07]} e6 {[%emt 0:00:29]} 9. Bd3 {[%emt 0:01:45]} Bxd3 {[%emt 0:00:26]} 10. Qxd3 {[%emt 0:00:09]} Bd6 {[%emt 0:00:31]} 11. O-O-O {[%emt 0:06:07]} Nbd7 {[%emt 0:01:50]} 12. Nd2 {[%emt 0:15:42]} Rf8 {[%emt 0:58:31]} 1-0

[Event "Skalica SCHAEFFLER Open 2019"]
[Site "Skalica"]
[Date "2019.08.30"]
[Round "8.5"]
[White "Vach, Jozef"]
[Black "Palka, Miroslav"]
[Result "0-1"]
[ECO "D02"]
[WhiteElo "1722"]
[BlackElo "1869"]
[Annotator "NA RC"]
[PlyCount "116"]
[EventDate "2019.08.25"]
[EventType "swiss"]
[EventCountry "SVK"]
[TimeControl "40/5400+30:1800+30"]

1. d4 d5 2. Nf3 Nf6 3. b3 g6 4. Bb2 Bg7 5. Nbd2 O-O 6. g3 Bf5 7. Bg2 Qc8 8. O-O Bh3 9. Ne5 Bxg2 10. Kxg2 Nbd7 11. Ndf3 c5 12. e3 Rd8 13. Qd3 b6 14. Rad1 e6 15. c4 Ne4 16. cxd5 exd5 17. Nxd7 Qxd7 18. Ne5 Qe6 19. f3 Ng5 20. Ng4 h5 21. h4 hxg4 22. hxg5 gxf3+ 23. Kxf3 Rac8 24. Qb1 Re8 25. Rfe1 c4 26. Re2 Qe7 27. e4 Qxg5 28. e5 b5 29. Rh1 f5 30. Rh4 Kf7 31. Bc1 Qd8 32. Reh2 Qb6 33. Be3 Rh8 34. Qh1 Rxh4 35. Rxh4 c3 36. Rh7 Rg8 37. Ke2 b4 38. Qxd5+ Qe6 39. Qc4 Qxc4+ 40. bxc4 Rh8 41. Rxh8 Bxh8 42. Bf4 Bg7 43. Kd3 Bf8 44. Kc2 Be7 45. Kb3 g5 46. Be3 Ke6 47. c5 a5 48. Kc4 Bd8 49. a3 bxa3 50. Kb3 Kd5 51. Kxc3 Ke4 52. Bc1 f4 53. Kd2 fxg3 54. Ke2 Kxd4 55. Kf3 g2 56. Kxg2 a2 57. Bb2+ Kxc5 58. Kf3 Kd5 0-1

[Event "Skalica SCHAEFFLER Open 2019"]
[Site "Skalica"]
[Date "2019.08.30"]
[Round "8.8"]
[White "Visvader, Kristof"]
[Black "Benci, Rudolf"]
[Result "0-1"]
[ECO "B56"]
[WhiteElo "1389"]
[BlackElo "1635"]
[Annotator "NA RC"]
[PlyCount "162"]
[EventDate "2019.08.25"]
[EventType "swiss"]
[EventCountry "SVK"]
[TimeControl "40/5400+30:1800+30"]

1. e4 c5 2. Nf3 d6 3. d4 cxd4 4. Nxd4 Nf6 5. Nc3 Nc6 6. Be3 e5 7. Nb3 a6 8. f3 b5 9. Nd5 Nxd5 10. Qxd5 Bb7 11. Qd2 Be7 12. g4 Bh4+ 13. Bf2 Bg5 14. Be3 Bxe3 15. Qxe3 Qh4+ 16. Qf2 Qxf2+ 17. Kxf2 Rc8 18. Rc1 Ke7 19. Be2 Rc7 20. c4 bxc4 21. Rxc4 Rhc8 22. Rhc1 Kd7 23. h4 Ne7 24. Rxc7+ Rxc7 25. Rxc7+ Kxc7 26. a3 Kb6 27. Ke3 d5 28. Kd3 d4 29. Kd2 Ng6 30. h5 Nf4 31. Nc1 f6 32. Nd3 Ng2 33. Ne1 Ne3 34. Nc2 Ng2 35. Ne1 Nf4 36. Nd3 Ne6 37. Kc2 a5 38. b3 Nc5 39. Nxc5 Kxc5 40. Bd3 Bc6 41. Kd2 Bd7 42. Kc2 Be6 43. Kb2 Bf7 44. Kc2 h6 45. Kb2 g6 46. hxg6 Bxg6 47. Kc2 h5 48. gxh5 Bxh5 49. Be2 f5 50. Kd3 Bg6 51. Bd1 f4 52. Bc2 Be8 53. Bd1 Bb5+ 54. Kd2 Kd6 55. Be2 Bc6 56. Bd1 Ke6 57. Be2 Kf6 58. Kd3 Bb5+ 59. Kd2 Be8 60. Kd3 Bf7 61. Kc2 Kg5 62. Bd1 Kh4 63. Be2 Kg3 64. b4 axb4 65. axb4 Kf2 66. Kd2 Be8 67. b5 d3 68. Bxd3 Kxf3 69. b6 Bc6 70. Ba6 Kxe4 71. b7 Bxb7 72. Bxb7+ Kd4 73. Ke2 e4 74. Bxe4 Kxe4 75. Kf2 f3 76. Kf1 Ke3 77. Ke1 Ke4 78. Kf2 Kf4 79. Kf1 Kg4 80. Kf2 Kf4 81. Kf1 Kg3 0-1

[Event "Skalica SCHAEFFLER Open 2019"]
[Site "Skalica"]
[Date "2019.08.30"]
[Round "8.8"]
[White "Visvader, Kristof"]
[Black "Benci, Rudolf"]
[Result "*"]
[ECO "B56"]
[WhiteElo "1389"]
[BlackElo "1635"]
[Annotator "NA"]
[PlyCount "23"]
[EventDate "2019.08.25"]
[EventType "swiss"]
[EventCountry "SVK"]
[SourceTitle "playchess.com"]
[Source "ChessBase"]
[SourceQuality "1"]
[TimeControl "40/5400+30:1800+30"]

1. e4 {[%emt 0:00:00]} c5 {[%emt 0:12:48]} 2. Nf3 {[%emt 0:00:00]} d6 {[%emt 0:02:10]} 3. d4 {[%emt 0:00:38]} cxd4 {[%emt 0:00:05]} 4. Nxd4 {[%emt 0:00:12]} Nf6 {[%emt 0:00:02]} 5. Nc3 {[%emt 0:00:26]} Nc6 {[%emt 0:00:03]} 6. Be3 {[%emt 0:00:55]} e5 {[%emt 0:00:14]} 7. Nb3 {[%emt 0:01:28]} a6 {[%emt 0:01:01]} 8. f3 {[%emt 0:03:49]} Nd5 {[%emt 0:05:25]} 9. Qxd5 {[%emt 0:00:29]} b5 {[%emt 0:00:30]} 10. Qd2 {[%emt 0:00:53]} Bb7 {[%emt 0:00:51]} 11. g4 {[%emt 0:02:53]} Be7 {[%emt 0:00:38]} 12. h4 {[%emt 0:15:31]} *

[Event "Skalica SCHAEFFLER Open 2019"]
[Site "Skalica"]
[Date "2019.08.30"]
[Round "8.9"]
[White "Drabek, Martin"]
[Black "Bartos, Bohumil"]
[Result "1/2-1/2"]
[ECO "B13"]
[WhiteElo "1381"]
[BlackElo "1548"]
[Annotator "NA"]
[PlyCount "28"]
[EventDate "2019.08.25"]
[EventType "swiss"]
[EventCountry "SVK"]
[SourceTitle "playchess.com"]
[Source "ChessBase"]
[SourceQuality "1"]
[TimeControl "40/5400+30:1800+30"]

1. e4 {[%emt 0:00:00]} c6 {[%emt 0:00:00]} 2. Nf3 {[%emt 0:00:00]} d5 {[%emt 0:00:03]} 3. exd5 {[%emt 0:00:29]} cxd5 {[%emt 0:02:07]} 4. d4 {[%emt 0:00:30]} Bf5 {[%emt 0:00:30]} 5. Nc3 {[%emt 0:00:53]} Nf6 {[%emt 0:00:20]} 6. Bf4 {[%emt 0:00:55]} e6 {[%emt 0:00:53]} 7. a3 {[%emt 0:00:43]} Bd6 {[%emt 0:03:11]} 8. Bxd6 {[%emt 0:03:13]} Qxd6 {[%emt 0:00:38]} 9. Rc1 {[%emt 0:01:19]} a6 {[%emt 0:14:06]} 10. Bd3 {[%emt 0:02:19]} Bg6 {[%emt 0:00:30]} 11. h3 {[%emt 0:00:30]} Nc6 {[%emt 0:00:30]} 12. O-O {[%emt 0:00:30]} Bh5 {[%emt 1:13:12]} 13. Be2 {[%emt 1:25:09]} Bxf3 {[%emt 0:00:30]} 14. Bxf3 {[%emt 0:00:30]} b5 {[%emt 0:00:30]} 1/2-1/2

[Event "Skalica SCHAEFFLER Open 2019"]
[Site "Skalica"]
[Date "2019.08.31"]
[Round "9.1"]
[White "Hrdlicka, Martin"]
[Black "Fizerova, Lucie"]
[Result "1-0"]
[ECO "C42"]
[WhiteElo "1661"]
[BlackElo "1563"]
[Annotator "NA"]
[PlyCount "71"]
[EventDate "2019.08.25"]
[EventType "swiss"]
[EventCountry "SVK"]
[SourceTitle "playchess.com"]
[Source "ChessBase"]
[SourceQuality "1"]
[TimeControl "40/5400+30:1800+30"]

1. e4 {[%emt 1:30:30]} e5 {[%emt 1:30:30]} 2. Nf3 {[%emt 0:00:30]} Nf6 {[%emt 0:00:30]} 3. Nc3 {[%emt 0:00:30]} Bb4 {[%emt 0:00:30]} 4. d3 {[%emt 0:00:30]} d5 {[%emt 0:00:30]} 5. exd5 {[%emt 0:00:30]} Nxd5 {[%emt 0:00:30]} 6. Bd2 {[%emt 0:00:30]} Nxc3 {[%emt 0:00:30]} 7. bxc3 {[%emt 0:00:30]} Bd6 {[%emt 0:00:30]} 8. Be2 {[%emt 0:00:30]} O-O {[%emt 0:00:30]} 9. O-O {[%emt 0:00:30]} Nc6 {[%emt 0:00:30]} 10. d4 {[%emt 0:00:30]} h6 {[%emt 0:00:30]} 11. d5 {[%emt 0:00:30]} Ne7 {[%emt 0:00:30]} 12. c4 {[%emt 0:00:30]} Ng6 {[%emt 0:00:30]} 13. Be3 {[%emt 0:00:30]} e4 {[%emt 0:00:30]} 14. Nd2 {[%emt 0:00:30]} Qh4 {[%emt 0:00:30]} 15. g3 {[%emt 0:00:30]} Qe7 {[%emt 0:00:30]} 16. Re1 {[%emt 0:00:30]} f5 {[%emt 0:00:30]} 17. Rb1 {[%emt 0:00:30]} f4 {[%emt 0:00:30]} 18. Bd4 {[%emt 0:00:30]} Bh3 {[%emt 0:00:30]} 19. Bg4 {[%emt 0:00:30]} fxg3 {[%emt 0:00:30]} 20. hxg3 {[%emt 0:00:30]} Bxg4 {[%emt 0:00:30]} 21. Qxg4 {[%emt 0:00:30]} e3 {[%emt 0:00:30]} 22. Qxg6 {[%emt 0:00:30]} exf2+ {[%emt 0:00:30]} 23. Bxf2 {[%emt 0:00:30]} Rf6 {[%emt 0:00:30]} 24. Rxe7 {[%emt 0:00:30]} Rxg6 {[%emt 0:00:30]} 25. Re3 {[%emt 0:00:30]} b6 {[%emt 0:00:30]} 26. Rbe1 {[%emt 0:00:30]} Bc5 {[%emt 0:00:30]} 27. Rf3 {[%emt 0:00:30]} Bxf2+ {[%emt 0:00:30]} 28. Kxf2 {[%emt 0:00:30]} Rf8 {[%emt 0:00:30]} 29. Rxf8+ {[%emt 0:00:30]} Kxf8 {[%emt 0:00:30]} 30. Re4 {[%emt 0:00:30]} Rf6+ {[%emt 0:00:30]} 31. Rf4 {[%emt 0:00:30]} Rxf4+ {[%emt 0:00:30]} 32. gxf4 {[%emt 0:00:30]} Ke7 {[%emt 0:00:30]} 33. Kg3 {[%emt 0:00:30]} Kf6 {[%emt 0:00:30]} 34. c5 {[%emt 0:00:30]} bxc5 {[%emt 0:00:30]} 35. Ne4+ {[%emt 0:00:30]} Kf5 {[%emt 0:00:30]} 36. Nxc5 {[%emt 0:00:30]} 1-0

[Event "Skalica SCHAEFFLER Open 2019"]
[Site "Skalica"]
[Date "2019.08.31"]
[Round "9.2"]
[White "Polozov Yaroslavl"]
[Black "Vozarova, Adriana"]
[Result "0-1"]
[ECO "A85"]
[WhiteElo "1000"]
[BlackElo "1647"]
[Annotator "NA"]
[PlyCount "29"]
[EventDate "2019.08.25"]
[EventType "swiss"]
[EventCountry "SVK"]
[SourceTitle "playchess.com"]
[Source "ChessBase"]
[SourceQuality "1"]
[TimeControl "40/5400+30:1800+30"]

1. d4 {[%emt 0:00:00]} f5 {[%emt 0:00:00]} 2. c4 {[%emt 0:00:49]} Nf6 {[%emt 0:00:00]} 3. Nc3 {[%emt 0:00:21]} e6 {[%emt 0:00:00]} 4. Nf3 {[%emt 0:00:26]} Be7 {[%emt 0:00:03]} 5. Bg5 {[%emt 0:00:53]} O-O {[%emt 0:00:57]} 6. e3 {[%emt 0:00:10]} h6 {[%emt 0:01:17]} 7. Bh4 {[%emt 0:01:05]} d6 {[%emt 0:01:14]} 8. h3 {[%emt 0:01:29]} Nbd7 {[%emt 0:02:28]} 9. Bd3 {[%emt 0:04:40]} b6 {[%emt 0:08:45]} 10. Qc2 {[%emt 0:03:07]} Bb7 {[%emt 0:01:16]} 11. Rg1 {[%emt 0:02:58]} c5 {[%emt 0:04:08]} 12. O-O-O {[%emt 0:01:28]} a6 {[%emt 0:09:46]} 13. Be2 {[%emt 0:19:35]} d5 {[%emt 0:19:13]} 14. Bg3 {[%emt 0:04:09]} g5 {[%emt 0:09:24]} 15. h4 {[%emt 0:09:41]} 0-1